{"text_format":"1","workbook":"xlsx","n_sheets":2,"sheets":["Книга регистрации","ОРДЕР"],"not_rendered":{"charts":0,"images":0,"macros":1,"external_links":0,"defined_names":19,"comments":0,"pivot_tables":0},"unopened":[],"bounds":{"document_bytes":16777216,"sheet_cells":100000,"rows_first":2000,"rows_last":500,"rows_between":2000,"halvings":0,"cell_chars":16384,"cell_head_chars":4096},"cells_cut":0,"cells_raw":0,"read":"whole","date_system":"1900"}

{"sheet":"Книга регистрации","index":0,"n_rows":1,"n_cols":6,"rows_kept":1,"cut":false,"hidden":false,"merged":[]}
["№","Дата","Сумма","Принято от:","Основание","Примечание"]

{"sheet":"ОРДЕР","index":1,"n_rows":31,"n_cols":31,"rows_kept":31,"cut":false,"hidden":false,"merged":[[11,30,12,37],[7,30,8,31],[9,30,10,31],[13,27,14,28],[13,30,14,37],[11,27,12,28],[5,27,6,28],[7,27,8,28],[9,27,10,28],[5,30,6,31],[26,19,26,20],[11,16,11,23],[24,16,24,23],[21,16,21,23],[18,16,18,23],[22,16,23,23],[26,21,26,23],[5,29,6,29],[7,29,8,29],[9,29,10,29],[11,29,12,29],[13,29,14,29],[1,2,1,7],[22,8,22,10],[7,2,7,5],[1,16,1,24],[2,16,2,23],[7,20,7,21],[4,16,4,23],[5,16,5,23],[10,4,10,5],[19,4,19,13],[22,4,22,5],[13,11,15,13],[13,6,15,7],[13,8,15,10],[13,2,15,5],[11,2,11,3],[11,4,11,5],[25,2,25,13],[27,2,27,13],[6,2,6,6],[20,2,20,13],[13,16,13,23],[14,16,14,23],[17,16,17,23],[20,20,20,21],[17,2,17,5],[17,6,17,7],[17,8,17,10],[17,11,17,13],[26,4,26,13],[1,15,30,15],[24,2,24,13],[10,2,10,3]]}
[]
[null,null,"Предприятие ДОБРОЕ НАЧАЛО",null,null,null,null,null,null,null,null,null,null,"Форма № КО-1",null,"л  и  н  и  я      о  т  р  е  з  а                     л  и  н  и  я      о  т  р  е  з  а",{"$f":"C2","v":"Предприятие ДОБРОЕ НАЧАЛО"}]
[]
[]
[null,null,null,null,null,null,null,null,null,null,null,null,null,null,null,null,{"$f":"C7","v":"ПРИХОДНЫЙ"}]
[null,null,null,null,null,null,null,null,null,null,null,null,null,null,null,null,{"$f":"C8","v":" КАССОВЫЙ ОРДЕР №"},null,null,null,null,null,null,null,null,null,null,"№",null,null,5]
[null,null,"ПРИХОДНЫЙ"]
[null,null," КАССОВЫЙ ОРДЕР №",null,null,null,{"$f":"AE6","v":5},null,null,null,null,null,null,null,null,null,null,null,{"$f":"J8","v":0}," №",{"$f":"G8","v":5},null,null,null,null,null,null,"Дата",null,null,"2012-02-17"]
[]
[null,null,null,null,null,null,null,null,null,null,null,null,null,null,null,null,null,null,null,null,null,null,null,null,null,null,null,"Сумма",null,null,15000]
[null,null,"Число",null,"Месяц",null,null,null,null,null,null,null,null,null,null,null,{"$f":"C20","v":"Принято от"}]
[null,null,{"$f":"DAY(AE8)","v":17},null,{"$f":"MONTH(AE8)","v":2},null,2012,"г.",null,null,null,null,null,null,null,null,{"$f":"E20","v":"Рустамова Шакир"},null,null,null,null,null,null,null,null,null,null,"Принято от",null,null,"Рустамова Шакир"]
[]
[null,null,"Корреспондирующий счет/субсчет",null,null,null,"Код аналитического учета",null,"Сумма",null,null,"Код целевого назначения",null,null,null,null,null,null,null,null,null,null,null,null,null,null,null,"Основание",null,null,"аренда плата за столовой"]
[]
[]
[null,null,null,null,null,null,null,null,null,null,null,null,null,null,null,null,{"$f":"C22","v":"Основание"}]
[null,null,180,null,null,null,null,null,{"$f":"AE10","v":15000},null,null,null,null,null,null,null,{"$f":"E21","v":0}]
[]
[null,null,"Принято от",null,{"$f":"AE12","v":"Рустамова Шакир"}]
[]
[null,null,"Основание",null,{"$f":"AE14","v":"аренда плата за столовой"},null,null,null,null,null,null,null,null,null,null,null,{"$f":"I18","v":15000}]
[null,null,null,null,0,null,null,null,null,null,null,null,null,null,null,null,{"$f":"C25","v":"пятнадцать тысяч рублей"}]
[]
[null,null,{"$f":"INDEX({\"\",\"сто \",\"двести \",\"триста \",\"четыреста \",\"пятьсот \",\"шестьсот \",\"семьсот \",\"восемьсот \",\"девятьсот \"},MOD(TRUNC(I18/10^8),10)+1)&CHOOSE(MOD(TRUNC(I18/10^7),10)+1,\"\",INDEX({\"десять \",\"одиннадцать \",\"двенадцать \",\"тринадцать \",\"четырнадцать \",\"пятнадцать \",\"шестнадцать \",\"семнадцать \",\"восемнадцать \",\"девятнадцать \"},MOD(TRUNC(I18/10^6),10)+1),\"двадцать \",\"тридцать \",\"сорок \",\"пятьдесят \",\"шестьдесят \",\"семьдесят \",\"восемьдесят \",\"девяносто \")&IF(MOD(TRUNC(I18/10^7),10)<>1,INDEX({\"\",\"один \",\"два \",\"три \",\"четыре \",\"пять \",\"шесть \",\"семь \",\"восемь \",\"девять \"},MOD(TRUNC(I18/10^6),10)+1),\"\")&IF(MOD(TRUNC(I18/10^6),1000),\"миллион\"&IF(MOD(TRUNC(I18/10^7),10)=1,\"ов \",VLOOKUP(MOD(TRUNC(I18/10^6),10),{0,\"ов \";1,\" \";2,\"а \";5,\"ов \"},2)),\"\")&INDEX({\"\",\"сто \",\"двести \",\"триста \",\"четыреста \",\"пятьсот \",\"шестьсот \",\"семьсот \",\"восемьсот \",\"девятьсот \"},MOD(TRUNC(I18/10^5),10)+1)&CHOOSE(MOD(TRUNC(I18/10^4),10)+1,\"\",INDEX({\"десять \",\"одиннадцать \",\"двенадцать \",\"тринадцать \",\"четырнадцать \",\"пятнадцать \",\"шестнадцать \",\"семнадцать \",\"восемнадцать \",\"девятнадцать \"},MOD(TRUNC(I18/1000),10)+1),\"двадцать \",\"тридцать \",\"сорок \",\"пятьдесят \",\"шестьдесят \",\"семьдесят \",\"восемьдесят \",\"девяносто \")&IF(MOD(TRUNC(I18/10^4),10)<>1,INDEX({\"\",\"одна \",\"две \",\"три \",\"четыре \",\"пять \",\"шесть \",\"семь \",\"восемь \",\"девять \"},MOD(TRUNC(I18/1000),10)+1),\"\")&IF(MOD(TRUNC(I18/1000),1000),\"тысяч\"&IF(MOD(TRUNC(I18/10^4),10)=1,\" \",VLOOKUP(MOD(TRUNC(I18/1000),10),{0,\" \";1,\"а \";2,\"и \";5,\" \"},2)),\"\")&INDEX({\"\",\"сто \",\"двести \",\"триста \",\"четыреста \",\"пятьсот \",\"шестьсот \",\"семьсот \",\"восемьсот \",\"девятьсот \"},MOD(TRUNC(I18/100),10)+1)&CHOOSE(MOD(TRUNC(I18/10),10)+1,\"\",INDEX({\"десять \",\"одиннадцать \",\"двенадцать \",\"тринадцать \",\"четырнадцать \",\"пятнадцать \",\"шестнадцать \",\"семнадцать \",\"восемнадцать \",\"девятнадцать \"},MOD(TRUNC(I18),10)+1),\"двадцать \",\"тридцать \",\"сорок \",\"пятьдесят \",\"шестьдесят \",\"семьдесят \",\"восемьдесят \",\"девяносто \")&IF(TRUNC(I18)=0,\"ноль \",IF(MOD(TRUNC(I18/10),10)<>1,INDEX({\"\",\"один \",\"два \",\"три \",\"четыре \",\"пять \",\"шесть \",\"семь \",\"восемь \",\"девять \"},MOD(TRUNC(I18),10)+1),\"\"))&\"рубл\"&IF(MOD(TRUNC(I18/10),10)=1,\"ей\",VLOOKUP(MOD(TRUNC(I18),10),{0,\"ей\";1,\"ь\";2,\"я\";5,\"ей\"},2))&TEXT(TRUNC((I18-TRUNC(I18)+0.00001)*100),\" 00\\ коп.;;\")","v":"пятнадцать тысяч рублей"},null,null,null,null,null,null,null,null,null,null,null,null,null,{"$f":"C26","v":"( п р о п и с ь ю )"}]
[null,null,"( п р о п и с ь ю )"]
[null,null,"Приложение",null,null,null,null,null,null,null,null,null,null,null,null,null,"«",{"$f":"C12","v":17},"»",{"$f":"E12","v":"1900-01-02"},null,{"$f":"G12","v":2012}]
[null,null,"",null,null,null,null,null,null,null,null,null,null,null,null,null,null,"М.П."]
[]
[null,null,null,null,null,"Гл.бухгалтер",null,null,null,null,null,null,null,null,null,null,{"$f":"F30","v":"Гл.бухгалтер"}]
[null,null,null,null,null,"Кассир",null,null,null,null,null,null,null,null,null,null,{"$f":"F31","v":"Кассир"}]